[Event "*** SCC Grand Prix: Titled Tuesday Blitz"]
[Site "Chess.com"]
[Date "2020.07.14"]
[Round "2"]
[White "anon132639"]
[Black "Jaka_Brilej"]
[Result "1-0"]
[WhiteElo "2697"]
[BlackElo "2310"]
[TimeControl "180+1"]
[EndTime "10:14:49 PDT"]
[Termination "anon132639 won by resignation"]

1. e4 {[%clk 0:03:00.9]} 1... c5 {[%clk 0:02:59.1]} 2. Nc3 {[%clk 0:02:58.1]}
2... Nc6 {[%clk 0:02:55.1]} 3. Bb5 {[%clk 0:02:57]} 3... Nd4 {[%clk 0:02:54.5]}
4. Nf3 {[%clk 0:02:56.9]} 4... Nxb5 {[%clk 0:02:54.6]} 5. Nxb5 {[%clk
0:02:57.8]} 5... d6 {[%clk 0:02:55.2]} 6. c4 {[%clk 0:02:56.7]} 6... Bd7 {[%clk
0:02:55.3]} 7. d4 {[%clk 0:02:56.2]} 7... cxd4 {[%clk 0:02:51.9]} 8. Nfxd4
{[%clk 0:02:55.6]} 8... Nf6 {[%clk 0:02:52.1]} 9. Nc3 {[%clk 0:02:54.9]} 9...
Rc8 {[%clk 0:02:49.6]} 10. b3 {[%clk 0:02:54.3]} 10... Qa5 {[%clk 0:02:34.5]}
11. Bd2 {[%clk 0:02:54]} 11... Qb6 {[%clk 0:02:09.7]} 12. Be3 {[%clk 0:02:47.7]}
12... Qa5 {[%clk 0:02:09.6]} 13. Qd2 {[%clk 0:02:47.3]} 13... Ng4 {[%clk
0:02:09.2]} 14. O-O {[%clk 0:02:45.7]} 14... Nxe3 {[%clk 0:02:08.7]} 15. fxe3
{[%clk 0:02:46.6]} 15... g6 {[%clk 0:02:00.8]} 16. Rad1 {[%clk 0:02:25.8]} 16...
Bg7 {[%clk 0:01:59.1]} 17. Nd5 {[%clk 0:02:26]} 17... Qd8 {[%clk 0:01:41.6]} 18.
Qb4 {[%clk 0:02:18.6]} 18... b6 {[%clk 0:01:35.6]} 19. Nf3 {[%clk 0:02:17.7]}
19... O-O {[%clk 0:01:29.9]} 20. e5 {[%clk 0:02:17.7]} 20... e6 {[%clk
0:01:08.4]} 21. Nf6+ {[%clk 0:02:17.2]} 21... Bxf6 {[%clk 0:01:08.5]} 22. exf6
{[%clk 0:02:18.1]} 22... Qxf6 {[%clk 0:01:08.6]} 23. Qxd6 {[%clk 0:02:17.4]}
23... Be8 {[%clk 0:00:49.3]} 24. Nd4 {[%clk 0:02:16.6]} 24... Qg5 {[%clk
0:00:48.9]} 25. Qxf8+ {[%clk 0:02:14.2]} 1-0

[Event "*** SCC Grand Prix: Titled Tuesday Blitz"]
[Site "Chess.com"]
[Date "2020.07.14"]
[Round "2"]
[White "PowerThinking2650"]
[Black "Evachess2006"]
[Result "1-0"]
[WhiteElo "2338"]
[BlackElo "1614"]
[TimeControl "180+1"]
[EndTime "10:15:01 PDT"]
[Termination "PowerThinking2650 won on time"]

1. c4 {[%clk 0:03:00.9]} 1... Nf6 {[%clk 0:02:46.8]} 2. e3 {[%clk 0:03:00.2]}
2... e5 {[%clk 0:02:19.8]} 3. a3 {[%clk 0:02:58.2]} 3... d5 {[%clk 0:01:41.9]}
4. Qc2 {[%clk 0:02:57]} 4... b6 {[%clk 0:01:33.1]} 5. cxd5 {[%clk 0:02:54.8]}
5... Nxd5 {[%clk 0:01:16.7]} 6. b3 {[%clk 0:02:52.4]} 6... Bb7 {[%clk
0:01:01.2]} 7. Bb2 {[%clk 0:02:51.5]} 7... Nd7 {[%clk 0:00:30.6]} 8. Nf3 {[%clk
0:02:50.2]} 8... Bd6 {[%clk 0:00:26.3]} 9. Be2 {[%clk 0:02:43.7]} 9... O-O
{[%clk 0:00:23.2]} 10. d3 {[%clk 0:02:43.4]} 10... Re8 {[%clk 0:00:07.1]} 11.
Nbd2 {[%clk 0:02:43.3]} 11... N7f6 {[%clk 0:00:04.8]} 12. Rg1 {[%clk 0:02:41.2]}
12... Qe7 {[%clk 0:00:03.8]} 13. g4 {[%clk 0:02:36.1]} 13... Nd7 {[%clk
0:00:02.9]} 14. g5 {[%clk 0:02:34.3]} 14... f6 {[%clk 0:00:01.5]} 15. gxf6
{[%clk 0:02:32.9]} 15... N5xf6 {[%clk 0:00:02.4]} 16. Ne4 {[%clk 0:02:33.6]}
16... Nxe4 {[%clk 0:00:01.8]} 17. dxe4 {[%clk 0:02:34.3]} 17... Nc5 {[%clk
0:00:02.2]} 18. Bc4+ {[%clk 0:02:30.6]} 1-0

[Event "*** SCC Grand Prix: Titled Tuesday Blitz"]
[Site "Chess.com"]
[Date "2020.07.14"]
[Round "2"]
[White "barriochess"]
[Black "Escanor89"]
[Result "0-1"]
[WhiteElo "2286"]
[BlackElo "2522"]
[TimeControl "180+1"]
[EndTime "10:15:04 PDT"]
[Termination "Escanor89 won by resignation"]

1. d4 {[%clk 0:03:00.9]} 1... Nf6 {[%clk 0:02:59.5]} 2. c4 {[%clk 0:02:59.4]}
2... g6 {[%clk 0:02:59.3]} 3. Nc3 {[%clk 0:02:58.8]} 3... Bg7 {[%clk 0:02:59.4]}
4. e4 {[%clk 0:02:59.2]} 4... d6 {[%clk 0:02:59.9]} 5. f4 {[%clk 0:02:59.5]}
5... O-O {[%clk 0:02:56.9]} 6. Nf3 {[%clk 0:02:59.8]} 6... c5 {[%clk 0:02:57]}
7. d5 {[%clk 0:02:59.7]} 7... e6 {[%clk 0:02:57.2]} 8. Be2 {[%clk 0:03:00]} 8...
exd5 {[%clk 0:02:57.3]} 9. cxd5 {[%clk 0:03:00.9]} 9... Re8 {[%clk 0:02:57]} 10.
e5 {[%clk 0:03:01.2]} 10... dxe5 {[%clk 0:02:51.2]} 11. fxe5 {[%clk 0:03:02.1]}
11... Ng4 {[%clk 0:02:50.7]} 12. e6 {[%clk 0:03:00.9]} 12... fxe6 {[%clk
0:02:46.5]} 13. d6 {[%clk 0:03:01.4]} 13... Nc6 {[%clk 0:02:36.1]} 14. O-O
{[%clk 0:03:01]} 14... Nd4 {[%clk 0:02:23.2]} 15. Ne4 {[%clk 0:03:00]} 15... Rf8
{[%clk 0:01:56.1]} 16. Nxd4 {[%clk 0:02:21.3]} 16... Bxd4+ {[%clk 0:01:54.6]}
17. Qxd4 {[%clk 0:02:19.7]} 17... Rxf1+ {[%clk 0:01:46.8]} 18. Kxf1 {[%clk
0:02:16.9]} 18... Nxh2+ {[%clk 0:01:21.5]} 19. Kg1 {[%clk 0:02:16.6]} 19... cxd4
{[%clk 0:01:21.2]} 20. Bg5 {[%clk 0:02:08.8]} 20... Qb6 {[%clk 0:01:12.4]} 21.
Kxh2 {[%clk 0:02:06.9]} 21... Bd7 {[%clk 0:01:09.6]} 22. Nf6+ {[%clk 0:02:03.6]}
22... Kg7 {[%clk 0:01:09.7]} 23. Nxd7 {[%clk 0:02:03.2]} 23... Qxd6+ {[%clk
0:01:08.8]} 24. g3 {[%clk 0:01:46.6]} 24... Qxd7 {[%clk 0:01:08.3]} 25. Rf1
{[%clk 0:01:45.5]} 25... Rf8 {[%clk 0:01:05.3]} 26. Bh6+ {[%clk 0:01:41.3]}
26... Kxh6 {[%clk 0:01:05.5]} 27. Rxf8 {[%clk 0:01:42.1]} 27... d3 {[%clk
0:01:05.8]} 0-1

[Event "*** SCC Grand Prix: Titled Tuesday Blitz"]
[Site "Chess.com"]
[Date "2020.07.14"]
[Round "2"]
[White "RobPeresian"]
[Black "Djager97"]
[Result "0-1"]
[WhiteElo "2236"]
[BlackElo "2443"]
[TimeControl "180+1"]
[EndTime "10:15:09 PDT"]
[Termination "Djager97 won on time"]

1. e4 {[%clk 0:03:00.9]} 1... e5 {[%clk 0:03:00.1]} 2. Nf3 {[%clk 0:03:00.4]}
2... Nc6 {[%clk 0:03:00.7]} 3. Bb5 {[%clk 0:03:00.5]} 3... a6 {[%clk 0:03:00.7]}
4. Bxc6 {[%clk 0:03:00.9]} 4... dxc6 {[%clk 0:03:00.8]} 5. O-O {[%clk
0:03:01.8]} 5... Bd6 {[%clk 0:03:00.7]} 6. d4 {[%clk 0:03:01.7]} 6... exd4
{[%clk 0:02:56.5]} 7. Qxd4 {[%clk 0:03:02.6]} 7... f6 {[%clk 0:02:56.3]} 8. Nbd2
{[%clk 0:02:42.1]} 8... Be6 {[%clk 0:02:55]} 9. b3 {[%clk 0:02:35]} 9... Ne7
{[%clk 0:02:50.9]} 10. Bb2 {[%clk 0:02:34.2]} 10... Ng6 {[%clk 0:02:46.3]} 11.
c4 {[%clk 0:02:33.4]} 11... Qe7 {[%clk 0:02:41]} 12. Qe3 {[%clk 0:01:40.7]}
12... O-O-O {[%clk 0:02:38.8]} 13. Nd4 {[%clk 0:00:50.5]} 13... Bf4 {[%clk
0:02:28.8]} 14. Qe2 {[%clk 0:00:20]} 14... Bxd2 {[%clk 0:02:28.8]} 15. Rad1
{[%clk 0:00:06.8]} 15... Bf4 {[%clk 0:02:23.4]} 16. Nxc6 {[%clk 0:00:04.4]}
16... bxc6 {[%clk 0:02:20]} 17. c5 {[%clk 0:00:04.6]} 17... Kb7 {[%clk
0:02:18.1]} 0-1

[Event "*** SCC Grand Prix: Titled Tuesday Blitz"]
[Site "Chess.com"]
[Date "2020.07.14"]
[Round "2"]
[White "shineatchess"]
[Black "SHIVACalypso"]
[Result "0-1"]
[WhiteElo "2192"]
[BlackElo "2422"]
[TimeControl "180+1"]
[EndTime "10:15:12 PDT"]
[Termination "SHIVACalypso won by resignation"]

1. Nf3 {[%clk 0:03:00.9]} 1... Nf6 {[%clk 0:02:57.3]} 2. g3 {[%clk 0:03:01.3]}
2... e6 {[%clk 0:02:57.5]} 3. Bg2 {[%clk 0:03:00.1]} 3... d5 {[%clk 0:02:55.7]}
4. O-O {[%clk 0:02:59.1]} 4... Be7 {[%clk 0:02:56.1]} 5. d4 {[%clk 0:02:58]}
5... O-O {[%clk 0:02:56]} 6. c4 {[%clk 0:02:57.6]} 6... dxc4 {[%clk 0:02:56.9]}
7. Qc2 {[%clk 0:02:57]} 7... a6 {[%clk 0:02:56.7]} 8. a4 {[%clk 0:02:55.9]} 8...
Bd7 {[%clk 0:02:56.2]} 9. Qxc4 {[%clk 0:02:55.9]} 9... Bc6 {[%clk 0:02:55.3]}
10. Bg5 {[%clk 0:02:54.8]} 10... Bd5 {[%clk 0:02:49.9]} 11. Qd3 {[%clk
0:02:51.4]} 11... c5 {[%clk 0:02:49.3]} 12. Bxf6 {[%clk 0:02:48.1]} 12... Bxf6
{[%clk 0:02:47.9]} 13. e4 {[%clk 0:02:35.7]} 13... Bc6 {[%clk 0:02:46.8]} 14.
Rd1 {[%clk 0:02:21.7]} 14... Qa5 {[%clk 0:02:44.7]} 15. Nc3 {[%clk 0:01:56.9]}
15... Rd8 {[%clk 0:02:33.8]} 16. Qc4 {[%clk 0:01:43.1]} 16... Qb4 {[%clk
0:02:10.4]} 17. Qxc5 {[%clk 0:00:47.4]} 17... Qxc5 {[%clk 0:02:06.5]} 18. dxc5
{[%clk 0:00:44.8]} 18... Nd7 {[%clk 0:02:04.9]} 19. Re1 {[%clk 0:00:40.5]} 19...
Bxc3 {[%clk 0:01:55.9]} 20. b3 {[%clk 0:00:39.7]} 20... Bxa1 {[%clk 0:01:54.1]}
0-1

[Event "*** SCC Grand Prix: Titled Tuesday Blitz"]
[Site "Chess.com"]
[Date "2020.07.14"]
[Round "2"]
[White "Alexandercs432"]
[Black "atalz0"]
[Result "0-1"]
[WhiteElo "2097"]
[BlackElo "2390"]
[TimeControl "180+1"]
[EndTime "10:15:13 PDT"]
[Termination "atalz0 won by resignation"]

1. e4 {[%clk 0:03:00.9]} 1... c5 {[%clk 0:02:59.6]} 2. Nf3 {[%clk 0:03:00.3]}
2... d6 {[%clk 0:02:59.9]} 3. d4 {[%clk 0:02:59.8]} 3... cxd4 {[%clk 0:03:00.8]}
4. Nxd4 {[%clk 0:03:00.2]} 4... Nf6 {[%clk 0:03:01.4]} 5. Nc3 {[%clk 0:03:00.6]}
5... a6 {[%clk 0:03:02]} 6. Be3 {[%clk 0:03:00.8]} 6... e6 {[%clk 0:03:00]} 7.
g4 {[%clk 0:03:00.3]} 7... h5 {[%clk 0:02:58.6]} 8. g5 {[%clk 0:02:58.9]} 8...
Ng4 {[%clk 0:02:58.7]} 9. Bd2 {[%clk 0:02:06.3]} 9... Qb6 {[%clk 0:02:57.3]} 10.
h3 {[%clk 0:01:23.7]} 10... Nxf2 {[%clk 0:02:55.7]} 11. Kxf2 {[%clk 0:01:24.2]}
11... Qxd4+ {[%clk 0:02:55.6]} 12. Be3 {[%clk 0:01:24.1]} 12... Qxd1 {[%clk
0:02:55.1]} 13. Rxd1 {[%clk 0:01:23]} 13... Nc6 {[%clk 0:02:53.2]} 14. h4 {[%clk
0:01:15.9]} 14... g6 {[%clk 0:02:44.9]} 15. Be2 {[%clk 0:01:16.1]} 15... Ke7
{[%clk 0:02:44.5]} 16. Kg2 {[%clk 0:01:13.3]} 16... Bg7 {[%clk 0:02:44.5]} 17.
Rhf1 {[%clk 0:01:07]} 17... b5 {[%clk 0:02:42.3]} 18. Rd2 {[%clk 0:00:39.8]}
18... Bb7 {[%clk 0:02:40.4]} 19. Nd1 {[%clk 0:00:32.7]} 19... Ne5 {[%clk
0:02:32.3]} 20. Bd3 {[%clk 0:00:28.7]} 20... Rac8 {[%clk 0:02:27.9]} 21. Nf2
{[%clk 0:00:25.2]} 21... Nc4 {[%clk 0:02:25.2]} 22. Bxc4 {[%clk 0:00:24.2]}
22... Rxc4 {[%clk 0:02:25.2]} 23. c3 {[%clk 0:00:24]} 23... Bxe4+ {[%clk
0:02:22.1]} 24. Nxe4 {[%clk 0:00:23.8]} 24... Rxe4 {[%clk 0:02:23]} 25. Bf2
{[%clk 0:00:19.7]} 25... Be5 {[%clk 0:02:20.1]} 26. Rfd1 {[%clk 0:00:18.6]}
26... Rc8 {[%clk 0:02:18.5]} 27. Rxd6 {[%clk 0:00:17.7]} 0-1

[Event "*** SCC Grand Prix: Titled Tuesday Blitz"]
[Site "Chess.com"]
[Date "2020.07.14"]
[Round "2"]
[White "PavelChernomordik"]
[Black "TurboSteen"]
[Result "1-0"]
[WhiteElo "2345"]
[BlackElo "1937"]
[TimeControl "180+1"]
[EndTime "10:15:20 PDT"]
[Termination "PavelChernomordik won by resignation"]

1. e4 {[%clk 0:03:00.9]} 1... e6 {[%clk 0:02:59.2]} 2. Qe2 {[%clk 0:02:59.2]}
2... c5 {[%clk 0:02:57]} 3. f4 {[%clk 0:02:59.1]} 3... Nc6 {[%clk 0:02:56.1]} 4.
Nf3 {[%clk 0:02:59.6]} 4... g6 {[%clk 0:02:55.1]} 5. g3 {[%clk 0:02:58.1]} 5...
Bg7 {[%clk 0:02:54.8]} 6. Bg2 {[%clk 0:02:58.7]} 6... Nge7 {[%clk 0:02:54.5]} 7.
d3 {[%clk 0:02:57]} 7... O-O {[%clk 0:02:53.8]} 8. O-O {[%clk 0:02:56.9]} 8...
d5 {[%clk 0:02:52.5]} 9. c3 {[%clk 0:02:55.7]} 9... b5 {[%clk 0:02:50.1]} 10. g4
{[%clk 0:02:49.4]} 10... f5 {[%clk 0:02:47.7]} 11. gxf5 {[%clk 0:02:47.7]} 11...
gxf5 {[%clk 0:02:45.6]} 12. Kh1 {[%clk 0:02:40.2]} 12... b4 {[%clk 0:02:33.8]}
13. e5 {[%clk 0:02:35.5]} 13... Bb7 {[%clk 0:02:28.8]} 14. Rg1 {[%clk 0:02:30]}
14... Kh8 {[%clk 0:02:26.2]} 15. Ng5 {[%clk 0:02:28.3]} 15... Qd7 {[%clk
0:02:23.1]} 16. Qh5 {[%clk 0:02:26.5]} 16... h6 {[%clk 0:02:21.6]} 17. Nf7+
{[%clk 0:02:19.5]} 17... Rxf7 {[%clk 0:02:19.3]} 18. Qxf7 {[%clk 0:02:18]} 18...
Rf8 {[%clk 0:02:19.8]} 19. Qh5 {[%clk 0:02:16.5]} 19... d4 {[%clk 0:02:18.3]}
20. c4 {[%clk 0:02:14]} 20... Nd8 {[%clk 0:02:11.7]} 21. Nd2 {[%clk 0:02:12.3]}
21... Rg8 {[%clk 0:02:04]} 22. Nf3 {[%clk 0:02:10.2]} 22... Bf8 {[%clk
0:01:56.8]} 23. Bd2 {[%clk 0:02:07.7]} 23... Qc6 {[%clk 0:01:53]} 24. Raf1
{[%clk 0:02:06.2]} 24... a5 {[%clk 0:01:49.3]} 25. Nh4 {[%clk 0:01:56.4]} 25...
Qc8 {[%clk 0:01:38.5]} 26. Bxb7 {[%clk 0:01:45.5]} 26... Qxb7+ {[%clk 0:01:37]}
27. Rf3 {[%clk 0:01:44.7]} 27... Rxg1+ {[%clk 0:01:28.2]} 28. Kxg1 {[%clk
0:01:43.4]} 28... a4 {[%clk 0:01:17.7]} 29. Rg3 {[%clk 0:01:40.9]} 29... b3
{[%clk 0:01:15.2]} 30. a3 {[%clk 0:01:39.6]} 30... Nec6 {[%clk 0:01:08]} 31.
Ng6+ {[%clk 0:01:36]} 1-0

[Event "*** SCC Grand Prix: Titled Tuesday Blitz"]
[Site "Chess.com"]
[Date "2020.07.14"]
[Round "2"]
[White "DanielTitichoca"]
[Black "BakaPG"]
[Result "0-1"]
[WhiteElo "2333"]
[BlackElo "2646"]
[TimeControl "180+1"]
[EndTime "10:15:23 PDT"]
[Termination "BakaPG won by checkmate"]

1. e4 {[%clk 0:03:00.9]} 1... e6 {[%clk 0:02:59.3]} 2. d4 {[%clk 0:02:59.2]}
2... d5 {[%clk 0:02:59.2]} 3. Nc3 {[%clk 0:02:59.4]} 3... Nf6 {[%clk 0:02:58.6]}
4. e5 {[%clk 0:02:58]} 4... Nfd7 {[%clk 0:02:58.6]} 5. f4 {[%clk 0:02:58.4]}
5... c5 {[%clk 0:02:58.6]} 6. Nf3 {[%clk 0:02:58.2]} 6... Nc6 {[%clk 0:02:59.3]}
7. Be3 {[%clk 0:02:55.6]} 7... cxd4 {[%clk 0:02:59.9]} 8. Nxd4 {[%clk
0:02:54.9]} 8... Bc5 {[%clk 0:03:00.7]} 9. Qd2 {[%clk 0:02:51.2]} 9... O-O
{[%clk 0:03:01.1]} 10. O-O-O {[%clk 0:02:45.3]} 10... a6 {[%clk 0:03:01.2]} 11.
g4 {[%clk 0:02:39.5]} 11... Nxd4 {[%clk 0:03:00]} 12. Bxd4 {[%clk 0:02:37.3]}
12... b5 {[%clk 0:03:00.6]} 13. h4 {[%clk 0:02:33.8]} 13... b4 {[%clk
0:03:00.1]} 14. Ne2 {[%clk 0:02:21.1]} 14... a5 {[%clk 0:02:59.3]} 15. h5 {[%clk
0:02:17.8]} 15... Ba6 {[%clk 0:02:58.3]} 16. g5 {[%clk 0:02:16.8]} 16... Qb6
{[%clk 0:02:50.8]} 17. Bxc5 {[%clk 0:02:11.8]} 17... Nxc5 {[%clk 0:02:49.3]} 18.
Nd4 {[%clk 0:02:12.7]} 18... a4 {[%clk 0:02:43.6]} 19. g6 {[%clk 0:02:09.1]}
19... b3 {[%clk 0:02:38.7]} 20. a3 {[%clk 0:01:53.5]} 20... bxc2 {[%clk
0:02:37.3]} 21. Qxc2 {[%clk 0:01:53.3]} 21... Rfc8 {[%clk 0:02:33.4]} 22. Kb1
{[%clk 0:01:45.3]} 22... Ne4 {[%clk 0:02:13.1]} 23. gxf7+ {[%clk 0:01:09.1]}
23... Kxf7 {[%clk 0:02:09.7]} 24. Qg2 {[%clk 0:00:46.7]} 24... Nc3+ {[%clk
0:02:05]} 25. Ka1 {[%clk 0:00:45]} 25... Nxd1 {[%clk 0:02:03.6]} 26. Rg1 {[%clk
0:00:35.9]} 26... Rc1+ {[%clk 0:02:01.7]} 27. Ka2 {[%clk 0:00:31.3]} 27... Nc3+
{[%clk 0:02:00.1]} 28. bxc3 {[%clk 0:00:32]} 28... Qb1# {[%clk 0:01:58.8]} 0-1

[Event "*** SCC Grand Prix: Titled Tuesday Blitz"]
[Site "Chess.com"]
[Date "2020.07.14"]
[Round "2"]
[White "maestroza"]
[Black "SanQui14"]
[Result "1-0"]
[WhiteElo "2497"]
[BlackElo "2276"]
[TimeControl "180+1"]
[EndTime "10:15:25 PDT"]
[Termination "maestroza won by resignation"]

1. d4 {[%clk 0:03:00.9]} 1... Nf6 {[%clk 0:02:59.9]} 2. Nf3 {[%clk 0:03:00.8]}
2... g6 {[%clk 0:03:00.3]} 3. c4 {[%clk 0:03:00.6]} 3... Bg7 {[%clk 0:03:01]} 4.
Nc3 {[%clk 0:03:01.5]} 4... d5 {[%clk 0:03:01.5]} 5. cxd5 {[%clk 0:03:02.4]}
5... Nxd5 {[%clk 0:03:02.4]} 6. Bg5 {[%clk 0:03:02.7]} 6... Nxc3 {[%clk
0:03:00.3]} 7. bxc3 {[%clk 0:03:02.6]} 7... O-O {[%clk 0:03:01.2]} 8. e3 {[%clk
0:03:02.9]} 8... c5 {[%clk 0:03:01.8]} 9. Bd3 {[%clk 0:02:54.3]} 9... Bg4 {[%clk
0:03:00.3]} 10. O-O {[%clk 0:02:51.6]} 10... Nc6 {[%clk 0:02:56.7]} 11. h3
{[%clk 0:02:51.5]} 11... Be6 {[%clk 0:02:50.1]} 12. Qe2 {[%clk 0:02:30.3]} 12...
Qa5 {[%clk 0:02:47.3]} 13. Be4 {[%clk 0:02:15.2]} 13... Rad8 {[%clk 0:02:40.6]}
14. Rab1 {[%clk 0:02:10.6]} 14... Qc7 {[%clk 0:02:17.4]} 15. Qb5 {[%clk
0:01:55.7]} 15... Na5 {[%clk 0:02:10.2]} 16. Bf4 {[%clk 0:01:32.5]} 16... Qd7
{[%clk 0:02:00.2]} 17. Qxa5 {[%clk 0:01:30.3]} 17... b6 {[%clk 0:01:56.5]} 18.
Qa6 {[%clk 0:01:23.1]} 18... Bd5 {[%clk 0:01:52.6]} 19. Bxd5 {[%clk 0:01:20.2]}
19... Qxd5 {[%clk 0:01:52.5]} 20. Qxa7 {[%clk 0:01:15.9]} 20... cxd4 {[%clk
0:01:52.3]} 21. cxd4 {[%clk 0:01:14.7]} 21... Ra8 {[%clk 0:01:50.9]} 22. Qxe7
{[%clk 0:01:11.9]} 22... Rxa2 {[%clk 0:01:51]} 23. Rxb6 {[%clk 0:01:11.1]} 23...
Rc8 {[%clk 0:01:38.5]} 24. Rb8 {[%clk 0:01:04]} 24... Rxb8 {[%clk 0:01:35.4]}
25. Bxb8 {[%clk 0:01:04.9]} 1-0

[Event "*** SCC Grand Prix: Titled Tuesday Blitz"]
[Site "Chess.com"]
[Date "2020.07.14"]
[Round "2"]
[White "dpopadic"]
[Black "obliviate12"]
[Result "1-0"]
[WhiteElo "2330"]
[BlackElo "2726"]
[TimeControl "180+1"]
[EndTime "10:15:27 PDT"]
[Termination "dpopadic won by resignation"]

1. e4 {[%clk 0:03:00.9]} 1... c6 {[%clk 0:02:59.4]} 2. d4 {[%clk 0:03:00.2]}
2... d5 {[%clk 0:02:59.8]} 3. Nd2 {[%clk 0:03:00.7]} 3... g6 {[%clk 0:02:52.8]}
4. Ngf3 {[%clk 0:02:59.5]} 4... Bg7 {[%clk 0:02:51.7]} 5. c3 {[%clk 0:02:58.9]}
5... Bg4 {[%clk 0:02:43.6]} 6. h3 {[%clk 0:02:58.2]} 6... Bxf3 {[%clk
0:02:42.2]} 7. Qxf3 {[%clk 0:02:58.3]} 7... Nf6 {[%clk 0:02:38.6]} 8. Bd3 {[%clk
0:02:56.5]} 8... O-O {[%clk 0:02:38.2]} 9. O-O {[%clk 0:02:56.1]} 9... Nbd7
{[%clk 0:02:38.4]} 10. Re1 {[%clk 0:02:53.2]} 10... e5 {[%clk 0:02:31.8]} 11.
exd5 {[%clk 0:02:53]} 11... Nxd5 {[%clk 0:02:31.4]} 12. Nb3 {[%clk 0:02:40.3]}
12... f5 {[%clk 0:02:27.9]} 13. dxe5 {[%clk 0:02:39.5]} 13... Nxe5 {[%clk
0:02:27.7]} 14. Qe2 {[%clk 0:02:38.2]} 14... Nxc3 {[%clk 0:02:24.4]} 15. Bc4+
{[%clk 0:02:37.5]} 15... Nxc4 {[%clk 0:02:24.3]} 16. Qxc4+ {[%clk 0:02:37.3]}
16... Qd5 {[%clk 0:02:16.6]} 17. Qh4 {[%clk 0:02:19.2]} 17... Ne4 {[%clk
0:02:14.9]} 18. Bh6 {[%clk 0:02:17.7]} 18... Qd8 {[%clk 0:02:06.2]} 19. Qxd8
{[%clk 0:02:12.3]} 19... Raxd8 {[%clk 0:02:05.3]} 20. Bxg7 {[%clk 0:02:12.4]}
20... Kxg7 {[%clk 0:02:06.2]} 21. f3 {[%clk 0:02:12.7]} 21... Nf6 {[%clk
0:02:05.9]} 22. Nc5 {[%clk 0:02:12]} 22... Rd2 {[%clk 0:02:00.1]} 23. Ne6+
{[%clk 0:02:11.3]} 23... Kf7 {[%clk 0:02:00.6]} 24. Nxf8 {[%clk 0:02:11.2]}
24... Kxf8 {[%clk 0:01:58.5]} 25. Rab1 {[%clk 0:02:11.1]} 25... Nd5 {[%clk
0:01:58.2]} 26. Rf1 {[%clk 0:02:04]} 26... a5 {[%clk 0:01:50.2]} 27. Rf2 {[%clk
0:02:04]} 27... Rd4 {[%clk 0:01:50.7]} 28. a3 {[%clk 0:02:00.5]} 28... Kf7
{[%clk 0:01:48]} 29. Re2 {[%clk 0:01:58.1]} 29... h5 {[%clk 0:01:47.4]} 30. Rbe1
{[%clk 0:01:56]} 30... h4 {[%clk 0:01:46.4]} 31. Kh2 {[%clk 0:01:51.4]} 31...
Rd3 {[%clk 0:01:46.5]} 32. Kg1 {[%clk 0:01:47.9]} 32... a4 {[%clk 0:01:42.6]}
33. Rc2 {[%clk 0:01:42.5]} 33... g5 {[%clk 0:01:29.6]} 34. Ree2 {[%clk
0:01:34.5]} 34... Rxa3 {[%clk 0:01:17.1]} 1-0

[Event "*** SCC Grand Prix: Titled Tuesday Blitz"]
[Site "Chess.com"]
[Date "2020.07.14"]
[Round "2"]
[White "NefeLV"]
[Black "Chessdemon2019"]
[Result "0-1"]
[WhiteElo "1828"]
[BlackElo "2342"]
[TimeControl "180+1"]
[EndTime "10:15:28 PDT"]
[Termination "Chessdemon2019 won by resignation"]

1. c4 {[%clk 0:03:00.9]} 1... Nf6 {[%clk 0:02:59.7]} 2. d4 {[%clk 0:03:00.3]}
2... e6 {[%clk 0:02:56.5]} 3. Nc3 {[%clk 0:03:01.2]} 3... Bb4 {[%clk 0:02:56.3]}
4. e3 {[%clk 0:03:00.9]} 4... b6 {[%clk 0:02:55.2]} 5. a3 {[%clk 0:03:00.5]}
5... Bxc3+ {[%clk 0:02:55.4]} 6. bxc3 {[%clk 0:03:01.4]} 6... O-O {[%clk
0:02:55.6]} 7. Be2 {[%clk 0:02:59.5]} 7... d6 {[%clk 0:02:55.8]} 8. Nf3 {[%clk
0:02:59.6]} 8... c5 {[%clk 0:02:56.2]} 9. O-O {[%clk 0:02:59.5]} 9... Nc6 {[%clk
0:02:56.2]} 10. d5 {[%clk 0:02:59.1]} 10... Na5 {[%clk 0:02:55.2]} 11. Bb2
{[%clk 0:02:50.6]} 11... e5 {[%clk 0:02:52.6]} 12. Nd2 {[%clk 0:02:45.8]} 12...
Ba6 {[%clk 0:02:50.2]} 13. e4 {[%clk 0:02:45.4]} 13... Qd7 {[%clk 0:02:47.4]}
14. f4 {[%clk 0:02:43.6]} 14... exf4 {[%clk 0:02:44.3]} 15. Rxf4 {[%clk
0:02:43.2]} 15... Rae8 {[%clk 0:02:44.2]} 16. Bd3 {[%clk 0:02:42.4]} 16... h6
{[%clk 0:02:34.3]} 17. Qf3 {[%clk 0:02:41.6]} 17... Nh7 {[%clk 0:02:32.5]} 18.
Rf1 {[%clk 0:02:40.1]} 18... Re7 {[%clk 0:02:26.4]} 19. Bc1 {[%clk 0:02:36.5]}
19... Rfe8 {[%clk 0:02:24.4]} 20. e5 {[%clk 0:02:26.6]} 20... dxe5 {[%clk
0:02:14]} 21. Bxh7+ {[%clk 0:02:24.5]} 21... Kxh7 {[%clk 0:02:14.4]} 22. Rxf7
{[%clk 0:02:23.9]} 22... Rxf7 {[%clk 0:02:14.9]} 23. Qxf7 {[%clk 0:02:23.4]}
23... Qxf7 {[%clk 0:02:14]} 24. Rxf7 {[%clk 0:02:24.3]} 24... Nxc4 {[%clk
0:02:14.2]} 25. Ne4 {[%clk 0:02:10.7]} 25... Ra8 {[%clk 0:02:09.3]} 26. d6
{[%clk 0:02:09.1]} 26... Kg6 {[%clk 0:02:00.8]} 27. Re7 {[%clk 0:02:01.3]} 27...
Bb5 {[%clk 0:01:54.2]} 28. Kf2 {[%clk 0:01:43.8]} 28... Bc6 {[%clk 0:01:53.2]}
29. Ng3 {[%clk 0:01:32.1]} 29... Rf8+ {[%clk 0:01:39.4]} 30. Kg1 {[%clk
0:01:25.1]} 30... Nxd6 {[%clk 0:01:37.2]} 31. Rxa7 {[%clk 0:01:22.4]} 31... Nb5
{[%clk 0:01:26.6]} 32. c4 {[%clk 0:01:17]} 32... Nxa7 {[%clk 0:01:26.2]} 0-1